[Event "61st Mongolian-ch Open 2023"]
[Site "Khovd"]
[Date "2023.05.22"]
[Round "3.6"]
[White "Ulziikhishig Khishigbat"]
[Black "Bilguun, Sumiya"]
[Result "0-1"]
[ECO "D37"]
[WhiteElo "1601"]
[BlackElo "2474"]
[Annotator "TA"]
[PlyCount "148"]
[EventDate "2023.05.22"]
[EventType "tourn"]
[EventCountry "MGL"]
[SourceTitle "playchess.com"]
[Source "ChessBase"]
[SourceQuality "1"]
[TimeControl "40/5400+30:1800+30"]

{[%evp 9,148,16,16,27,33,32,29,27,34,34,28,0,27,3,24,0,8,0,0,0,0,0,2,-8,0,-26,5,4,0,0,8,6,3,0,0,0,0,-6,15,0,0,0,0,0,0,-36,-49,-370,-359,-373,0,0,0,-341,-239,-239,-247,-745,-760,-753,-751,-756,-756,-750,-86,-97,0,-629,-611,-603,-551,-772,-365,-682,-648,-630,-487,-613,-613,-594,-338,-785,-208,-211,-214,-213,-222,-212,-195,-201,-143,-316,-287,-467,-463,-2687,-397,-397,-393,-375,-283,-283,-265,-1918,-1547,-1928,-1862,-1764,-1683,-1746,-1472,-1398,-1307,-29959,-29966,-29959,-29966,-29966,-29967,-29966,-29967,-29965,-29965,-29965,-29968,-29972,-29973,-29977,-29977,-29979,-29980,-29981,-29982,-29983,-29984,-29984,-29985,-29985,-29986,-29988,-29989]} 1. d4 {[%emt 0:00:17]} d5 {[%emt 0:00:05]} 2. c4 {[%emt 0:00:18]} e6 {[%emt 0:00:04]} 3. Nc3 {[%emt 0:00:16]} a6 {[%emt 0:00:08]} 4. cxd5 {[%emt 0:02:50]} exd5 {[%emt 0:00:09]} 5. Nf3 {[%emt 0:01:11]} Nf6 {[%emt 0:00:08]} 6. Bg5 {[%emt 0:00:47][%cal Bc1g5,Bg5h4,Bh4g3][%mdl 32] D37: Queen's Gambit Declined: 5 Bf4.} Be6 {[%emt 0:00:11]} 7. e3 {[%emt 0:04:18]} Nbd7 {[%emt 0:00:34]} 8. Bd3 {[%emt 0:01:18] White has an edge.} c6 {[%emt 0:00:13]} 9. Qc2 {[%emt 0:00:19]} Bd6 {[%emt 0:00:23]} 10. Bh4 {[%emt 0:09:49]} Qc7 {[%emt 0:06:26]} 11. Bg3 {[%emt 0:01:11]} Bg4 {[%emt 0:05:22][%cal Be6g4,Bg4h5,Bh5g6][%mdl 32]} 12. Nd2 {[%emt 0:19:26]} O-O {[%emt 0:14:44]} 13. O-O {[%emt 0:04:31]} Bxg3 {[%emt 0:03:34]} 14. hxg3 {[%emt 0:00:29] [#]} Bh5 $146 {[%emt 0:00:41]} ({Predecessor:} 14... Rfe8 15. Rfc1 Bh5 16. Na4 Bg6 17. b4 Rec8 18. Nc5 Ne8 19. Qd1 Bxd3 20. Nxd3 Nd6 {½-½ Johansson,L (2468)-Jogstad,M (2384) SWE-ch Uppsala 2022 (9)}) 15. Rfc1 {[%emt 0:00:46]} Bg6 {[%emt 0:01:40]} 16. Rab1 {[%emt 0:01:01]} Qd6 {[%emt 0:04:18]} 17. Na4 {[%emt 0:09:10]} Rae8 {[%emt 0:08:41]} 18. b4 {[%emt 0:04:28]} Bxd3 {[%emt 0:18:31]} 19. Qxd3 {[%emt 0:00:07]} b5 {[%emt 0:00:24]} 20. Nc5 {[%emt 0:01:26]} Nxc5 {[%emt 0:00:11]} 21. Rxc5 {[%emt 0:01:30]} Nd7 {[%emt 0:00:06]} 22. Rc3 {[%emt 0:00:51]} Nb6 {[%emt 0:00:06]} 23. Rc5 {[%emt 0:00:33]} Qh6 {[%emt 0:06:36]} 24. Rbc1 {[%emt 0:03:23]} Nc4 {[%emt 0:04:33]} 25. Nxc4 {[%emt 0:01:01]} bxc4 {[%emt 0:00:15]} 26. Qa3 {[%emt 0:01:28]} Re6 {[%emt 0:00:24][%cal Be8e6,Be6h6,Bh6h2][%mdl 32]} 27. Re1 {[%emt 0:11:40]} Qh5 {[%emt 0:02:17] Strongly threatening ...Rh6.} 28. Qxa6 $2 {[%emt 0:02:26][%mdl 8192]} (28. e4 $1 $15) 28... Rh6 $19 {[%emt 0:05:12][%csl Gh6][%cal Rh5h1]} 29. Kf1 {[%emt 0:00:18]} Qg4 $2 {[%emt 0:03:48]} ({Better is} 29... Qh1+ $19 30. Ke2 Qxg2) 30. Kg1 $1 $11 {[%emt 0:00:11]} (30. f3 Qxg3) 30... Qh5 $4 $40 {[%emt 0:00:11][%mdl 8320] Black attacks.} (30... Qg6 $11 31. Qa5 Qh5) 31. Kf1 $1 $19 {[%emt 0:00:08]} Qh1+ {[%emt 0:02:09][%mdl 64] Deflection} 32. Ke2 {[%emt 0:00:05]} Qxg2 {[%emt 0:00:06]} 33. Rxc6 {[%emt 0:01:11]} (33. Qa3) 33... Rh2 $1 {[%emt 0:00:14][%csl LRf2,LRg3]} (33... Rh3 34. Rc8 g6 35. Rxf8+ Kxf8 36. Qf6 $11) 34. Rf1 {[%emt 0:00:11]} Qe4 {[%emt 0:01:21]} (34... Qxg3 35. Qc8 $15) 35. Qa3 {[%emt 0:07:22]} Qc2+ {[%emt 0:00:12]} 36. Ke1 {[%emt 0:02:23]} Qb1+ $2 {[%emt 0:00:05]} (36... Re8 $19 37. b5 h5) 37. Ke2 $17 {[%emt 0:00:09]} Qc2+ {[%emt 0:00:06][%mdl 8192]} (37... Qe4 $17 38. Qc3 (38. Kd2 $2 Qf5 $17) 38... h5) 38. Ke1 $19 {[%emt 0:00:04] White is now going downhill.} h5 {[%emt 0:04:42]} 39. b5 {[%emt 0:02:28]} Rb8 {[%emt 0:03:12]} 40. Qb4 {[%emt 0:00:00]} Ra8 {[%emt 0:00:00]} (40... Qxa2 $142 {Threatens to win with ...Qc2.} 41. Qd2 Qb1+ 42. Ke2 Qxb5) 41. Qd2 $2 {[%emt 0:05:51]} (41. a3 Re8 42. Qd2 Qb1+ 43. Ke2 Qxb5 44. Rc5) 41... Qb1+ {[%emt 0:08:10]} (41... Qxa2 42. Qxa2 Rxa2 43. Kd1 $11) 42. Ke2 {[%emt 0:01:09]} Qxb5 {[%emt 0:00:07] ( -> ...c3+)} (42... Qxa2 43. Qxa2 Rxa2+ 44. Kf3 $16) 43. Rc5 {[%emt 0:00:22]} Qd7 {[%emt 0:02:14]} 44. Qc2 {[%emt 0:03:04]} g6 {[%emt 0:00:40]} 45. a4 $2 {[%emt 0:10:16]} (45. Qb2) 45... Rb8 $2 {[%emt 0:08:50]} (45... Rxa4 46. Rxd5 Qg4+ 47. Kd2 Ra3) 46. Rb5 {[%emt 0:04:15]} Rxb5 {[%emt 0:00:25]} 47. axb5 {[%emt 0:00:01]} Qxb5 {[%emt 0:00:27][%mdl 4096] Endgame KQR-KQR} 48. Qb1 {[%emt 0:00:02]} Qe8 {[%emt 0:08:13]} 49. Qb7 {[%emt 0:08:24] Against Qc8} Qd8 {[%emt 0:08:13]} 50. Qc6 $2 {[%emt 0:02:48]} (50. Rb1 $17) 50... Kg7 {[%emt 0:00:31]} 51. e4 $2 {[%emt 0:02:18]} (51. Qb7 {was called for.}) 51... h4 {[%emt 0:01:14] Hoping for ...Qb8.} (51... Qb8 $2 52. Qxd5 Qb2+ 53. Kf3 Qc3+ 54. Ke2 $19) 52. gxh4 {[%emt 0:03:51]} (52. Qxd5 $142 Qxd5 53. exd5 hxg3 54. d6) 52... Rxh4 $2 {[%emt 0:01:28]} (52... Qb8 53. Qd7 Qb2+ 54. Ke3 Qc3+ 55. Kf4 Rxh4+ 56. Ke5 Rxe4+ 57. Kd6 Qxd4) 53. Qxd5 {[%emt 0:01:07]} Qxd5 {[%emt 0:00:09]} 54. exd5 {[%emt 0:00:01]} Rxd4 {[%emt 0:00:25] KR-KR} 55. Rc1 {[%emt 0:00:01]} Kf6 {[%emt 0:00:16] ...Ke5 is the strong threat.} (55... Rxd5 56. Rxc4 Kh6 57. Rc7 $15) 56. Ke3 $2 {[%emt 0:00:28]} (56. d6 Ke6 57. d7) 56... Ke5 {[%emt 0:01:15]} ({Weaker is} 56... Rxd5 57. Rxc4 g5 58. Kf3 $15) 57. d6 {[%emt 0:00:18] [#]} Kd5 $1 {[%emt 0:00:34]} ({And not} 57... Rxd6 58. Rxc4 g5 59. Rc5+ Rd5 60. Rc3 $15) ({Stronger than} 57... Rd3+ 58. Ke2 $15) 58. Ra1 {[%emt 0:02:16]} Rd3+ {[%emt 0:00:11]} 59. Ke2 {[%emt 0:00:01]} Kxd6 {[%emt 0:00:12]} 60. Ra7 {[%emt 0:00:36]} Kc5 {[%emt 0:00:34]} 61. Rxf7 {[%emt 0:00:54]} Rd6 {[%emt 0:00:04] Black mates.} 62. Rc7+ {[%emt 0:00:34]} Kb4 {[%emt 0:00:04]} 63. Rb7+ {[%emt 0:00:05]} Ka3 {[%emt 0:00:17]} 64. Rc7 {[%emt 0:00:06] [#]} Kb3 $1 {[%emt 0:00:04]} 65. Rb7+ {[%emt 0:00:05]} Kc2 {[%emt 0:00:04]} 66. f4 {[%emt 0:00:15]} c3 {[%emt 0:00:04][%cal Bc4c3,Bc3c2][%mdl 32]} 67. Rb5 {[%emt 0:00:06]} Kc1 {[%emt 0:00:17]} 68. f5 {[%emt 0:00:28]} gxf5 {[%emt 0:00:13]} 69. Rxf5 {[%emt 0:00:06]} c2 {[%emt 0:00:10]} 70. Rb5 {[%emt 0:00:11]} Re6+ {[%emt 0:00:08]} 71. Kf2 {[%emt 0:00:25]} Kd2 {[%emt 0:00:11]} 72. Rd5+ {[%emt 0:00:04]} Kc3 {[%emt 0:00:06]} 73. Rc5+ {[%emt 0:00:04]} Kd3 {[%emt 0:00:09]} 74. Rc8 {[%emt 0:00:09]} Re4 {[%emt 0:00:11] Weighted Error Value: White=0.73/Black=0.67} 0-1

[Event "61st Mongolian-ch Open 2023"]
[Site "Khovd"]
[Date "2023.05.24"]
[Round "6.1"]
[White "Erdene, Ganzorig"]
[Black "Chinguun, Sumiya"]
[Result "1/2-1/2"]
[ECO "A45"]
[WhiteElo "2278"]
[BlackElo "2298"]
[Annotator "TA"]
[PlyCount "127"]
[EventDate "2023.05.22"]
[EventType "tourn"]
[EventCountry "MGL"]
[SourceTitle "playchess.com"]
[Source "ChessBase"]
[SourceQuality "1"]
[TimeControl "40/5400+30:1800+30"]

{[%evp 9,127,0,0,0,35,0,22,0,0,15,18,0,0,-3,-3,0,23,14,24,0,0,0,0,-8,-18,-22,-22,-22,-22,-22,-18,-26,-26,-30,-18,-39,-47,-45,-47,-47,-56,-49,-34,-41,0,-36,-44,-45,-22,-26,-22,-25,17,5,74,54,110,114,122,122,122,116,127,121,113,82,97,80,101,106,103,87,196,183,173,157,154,156,180,176,219,49,52,45,49,50,47,42,42,7,8,8,8,8,17,8,8,8,8,8,8,8,8,8,8,8,8,8,8,8,8,8,8,0,8,8,8,17,1030,0]} 1. d4 {[%emt 0:00:03]} Nf6 {[%emt 0:00:08]} 2. Bf4 {[%emt 0:00:06]} g6 {[%emt 0:00:09]} 3. Nc3 {[%emt 0:00:26]} d5 {[%emt 0:00:06]} 4. e3 {[%emt 0:00:20]} Bg7 {[%emt 0:00:04]} 5. h4 {[%emt 0:00:20]} h5 {[%emt 0:00:05]} 6. Nf3 {[%emt 0:00:42] A45: Trompowsky Attack.} (6. Nb5 $5 Na6 $8 7. Nc3 $11) 6... Bg4 {[%emt 0:00:39]} 7. Be2 {[%emt 0:00:50]} Bxf3 {[%emt 0:00:20]} 8. Bxf3 {[%emt 0:00:10] The position is equal.} c6 {[%emt 0:00:12]} 9. O-O {[%emt 0:04:57] [#]} O-O $146 {[%emt 0:02:19]} ({Predecessor:} 9... Nbd7 10. e4 e6 11. Re1 Nb6 12. Be5 O-O 13. Bxf6 Qxf6 14. e5 Qxh4 15. g3 Qe7 {0-1 Munkhgal,G (2463)-Hansen,E (2606) Titled Tuesday intern op 16th Aug Early blitz 2022 (8)}) 10. Qe2 {[%emt 0:01:36]} (10. Re1 $5 {[%cal Re3e4]}) 10... Nbd7 {[%emt 0:02:00]} 11. Rad1 {[%emt 0:08:29]} Qb6 {[%emt 0:01:14]} 12. b3 {[%emt 0:01:43]} Qa5 {[%emt 0:00:25]} 13. Qd2 {[%emt 0:00:26][%cal Oc3d5] Threatening Nxd5!} Qa3 {[%emt 0:08:23]} 14. Qc1 {[%emt 0:00:56]} (14. Nb1 $5 {[%cal Rb1a3]} Qa6 15. c4 $14) 14... Qb4 {[%emt 0:02:09]} 15. Qb2 {[%emt 0:01:07]} Rfe8 {[%emt 0:02:15]} 16. a3 {[%emt 0:04:50]} Qb6 {[%emt 0:00:47]} 17. Na4 {[%emt 0:02:05]} Qa5 {[%emt 0:00:19]} 18. Qc3 {[%emt 0:01:27]} Qxc3 {[%emt 0:07:12]} 19. Nxc3 {[%emt 0:00:06][%cal Ba4c3,Bc3b1,Bb1d2,Bd2c4,Bc4d6][%mdl 32]} e5 {[%emt 0:00:17]} 20. dxe5 {[%emt 0:00:09]} Nxe5 {[%emt 0:00:09]} 21. Be2 {[%emt 0:00:10]} Neg4 {[%emt 0:01:54]} 22. Rd3 {[%emt 0:07:32]} Nd7 {[%emt 0:03:27][%cal Bf6d7,Bd7c5,Bc5e6][%mdl 32]} 23. Nb1 {[%emt 0:03:43]} Nc5 {[%emt 0:02:38] Excellent horsemanship.} 24. Rdd1 {[%emt 0:00:11]} Ne6 {[%emt 0:00:54]} 25. Bg3 {[%emt 0:02:23]} f5 {[%emt 0:09:36]} 26. Nd2 {[%emt 0:03:00]} d4 {[%emt 0:00:51]} 27. Bxg4 {[%emt 0:03:13]} hxg4 {[%emt 0:00:21]} 28. Nc4 {[%emt 0:00:07]} dxe3 {[%emt 0:00:32]} 29. fxe3 {[%emt 0:00:06][%cal Oh4h5]} Nc5 {[%emt 0:01:05]} 30. Bf4 {[%emt 0:01:58]} b5 {[%emt 0:08:57]} 31. Nd6 {[%emt 0:04:37]} Re7 {[%emt 0:12:12]} (31... Re6 $11 {keeps the balance.}) 32. h5 {[%emt 0:01:54]} (32. Nxf5 $5 gxf5 33. Bd6 {[%mdl 64] Discovered Attack, Double Attack} Rxe3 34. Bxc5 $16) 32... Kh7 {[%emt 0:00:26]} ({Black should play} 32... gxh5 $14 33. Nxf5 Re6) 33. hxg6+ $16 {[%emt 0:00:11]} Kxg6 {[%emt 0:00:50] [#]} 34. Nxf5 $1 {[%emt 0:00:25][%mdl 576] Decoy, Clearance} Re6 {[%emt 0:00:13]} 35. Nxg7 {[%emt 0:04:21]} Kxg7 {[%emt 0:00:14]} 36. Rd6 {[%emt 0:00:17]} Rae8 {[%emt 0:00:56]} 37. Rfd1 {[%emt 0:00:27]} a5 {[%emt 0:01:15]} 38. R1d4 {[%emt 0:06:46]} Ne4 {[%emt 0:00:57]} 39. Rxe6 {[%emt 0:01:13]} Rxe6 {[%emt 0:01:35][%mdl 4096] Endgame KRB-KRN} 40. Bc7 {[%emt 0:00:00]} Nf6 {[%emt 0:00:00]} (40... c5 $16 41. Rd7+ Kf8) 41. Kf2 {[%emt 0:16:19]} Ne4+ {[%emt 0:05:48]} 42. Ke1 {[%emt 0:00:46]} c5 {[%emt 0:00:39]} 43. Rd7+ {[%emt 0:00:35]} Kg6 {[%emt 0:00:06]} 44. Bxa5 {[%emt 0:01:37]} Nf6 {[%emt 0:00:12] [#]} 45. Rd3 {[%emt 0:01:45]} ({White should try} 45. Rb7 $1 $18) 45... c4 $1 $14 {[%emt 0:00:25]} 46. bxc4 {[%emt 0:05:26]} bxc4 {[%emt 0:01:03]} 47. Rd4 {[%emt 0:00:20][%cal Oe1e2] Threatens to win with Ke2!} Rxe3+ {[%emt 0:00:14]} 48. Kf2 {[%emt 0:02:53]} Rxa3 {[%emt 0:00:53]} 49. Bd8 {[%emt 0:00:10][%cal Od4d6]} Kf5 {[%emt 0:01:30]} 50. Bxf6 {[%emt 0:01:05]} Kxf6 {[%emt 0:00:05]} 51. Rxc4 $11 {[%emt 0:00:49] KR-KR} Kf5 {[%emt 0:00:17]} 52. c3 {[%emt 0:01:29] Kg3 is the strong threat.} Ra2+ $1 {[%emt 0:00:25]} 53. Kg3 {[%emt 0:00:53]} Rc2 {[%emt 0:00:05]} 54. Rf4+ {[%emt 0:01:34]} Ke5 {[%emt 0:00:10]} 55. Rf2 {[%emt 0:00:08]} Rxc3+ {[%emt 0:00:44]} 56. Kxg4 {[%emt 0:00:12] Black must now prevent Rf8.} Rc8 {[%emt 0:00:14] Against Rf8} 57. Rf5+ {[%emt 0:08:31]} Ke6 {[%emt 0:00:47]} 58. Kf4 {[%emt 0:00:34]} Rg8 {[%emt 0:00:53]} 59. g4 {[%emt 0:00:30] Hoping for g5.} Rg7 {[%emt 0:00:16]} 60. Ra5 {[%emt 0:00:48] Strongly threatening Ra6+.} Rg8 {[%emt 0:03:41]} 61. Rf5 {[%emt 0:03:55] aiming for g5.} Rg7 {[%emt 0:00:11]} 62. Rf8 {[%emt 0:00:10]} Ke7 $1 {[%emt 0:00:07]} 63. Ra8 {[%emt 0:00:37] White threatens Ra7+ and mate.} Rg6 $1 {[%emt 0:00:11] [#]} 64. Ke4 $2 {[%emt 0:28:02] Weighted Error Value: White=0.12 (very precise) /Black=0.11 (very precise)} (64. Ra5 $1 $18 Kf8 65. Ra7) 1/2-1/2

[Event "61st Mongolian-ch Open 2023"]
[Site "Khovd"]
[Date "2023.05.24"]
[Round "6.2"]
[White "Amartuvshin, Ganzorig"]
[Black "Amilal Munkhdalai"]
[Result "1/2-1/2"]
[ECO "E12"]
[WhiteElo "2407"]
[BlackElo "2141"]
[Annotator "TA"]
[PlyCount "183"]
[EventDate "2023.05.22"]
[EventType "tourn"]
[EventCountry "MGL"]
[SourceTitle "playchess.com"]
[Source "ChessBase"]
[SourceQuality "1"]
[TimeControl "40/5400+30:1800+30"]

{[%evp 24,183,13,33,22,18,46,36,41,32,21,30,45,10,37,33,73,29,29,0,0,0,7,8,17,0,4,0,0,0,29,29,36,39,47,29,29,29,30,32,92,27,35,20,31,1,0,2,8,4,3,0,4,8,8,7,8,0,0,0,0,0,0,0,0,0,0,0,0,0,0,0,0,0,0,0,0,0,0,0,0,0,0,0,0,0,0,0,0,0,0,0,0,0,0,0,0,0,0,0,0,0,0,0,0,0,0,0,0,0,0,0,0,0,0,0,0,0,0,0,0,0,0,0,0,0,0,0,0,0,0,0,0,0,0,0,0,0,0,0,0,0,0,0,0,0,0,0,0,0,0,0,0,0,8,-32,-35,-41,-8,-30,-8,-8]} 1. d4 {[%emt 0:00:01]} Nf6 {[%emt 0:00:03]} 2. c4 {[%emt 0:00:10]} e6 {[%emt 0:00:04]} 3. Nf3 {[%emt 0:00:09]} b6 {[%emt 0:00:05]} 4. a3 {[%emt 0:00:08]} Bb7 {[%emt 0:00:43]} 5. Nc3 {[%emt 0:00:10]} d5 {[%emt 0:00:29]} 6. cxd5 {[%emt 0:00:08]} Nxd5 {[%emt 0:00:26]} 7. Qc2 {[%emt 0:00:15]} Nxc3 {[%emt 0:03:00]} 8. bxc3 {[%emt 0:00:15]} Nd7 {[%emt 0:01:09]} 9. e4 {[%emt 0:00:16]} Be7 {[%emt 0:00:59]} 10. Bd3 {[%emt 0:00:19]} c5 {[%emt 0:01:14]} 11. Bf4 {[%emt 0:00:18]} O-O {[%emt 0:05:17]} 12. O-O {[%emt 0:00:19]} cxd4 {[%emt 0:02:28]} 13. cxd4 {[%emt 0:00:10]} Rc8 {[%emt 0:00:37] E12: Queen's Indian: Unusual White 4th moves, 4 a3, 4 Nc3 Bb7 5 a3 and 4 Nc3 Bb7 .} 14. Qe2 {[%emt 0:00:34]} Nf6 {[%emt 0:14:16]} 15. Bd2 {[%emt 0:00:28]} Rc7 {[%emt 0:01:38] White is slightly better.} 16. a4 {[%emt 0:01:37]} Qa8 {[%emt 0:08:41][%cal Rf6e4]} 17. Rfe1 {[%emt 0:00:22]} a5 $1 {[%emt 0:04:28]} 18. Rab1 {[%emt 0:09:13]} Qa7 {[%emt 0:03:02] [#]} 19. Ne5 $146 {[%emt 0:02:04]} ({Predecessor:} 19. h4 Rd8 20. h5 Nxh5 21. d5 exd5 22. e5 g6 23. e6 f5 24. Nd4 Rc4 25. Nxf5 Ba6 26. Bxc4 dxc4 27. Nxe7+ Qxe7 28. Bc3 {1-0 Zakharevich,I (2345)-Zaitsev,I (2450) Cherepovets 1993}) 19... Rd8 {[%emt 0:03:09]} 20. Qe3 {[%emt 0:01:06] White is more active.} (20. Nxf7 {feels hotter.} Kxf7 21. e5 Ng8 22. Bxh7 Rxd4 23. Be3) 20... Ba6 {[%emt 0:07:12]} 21. Bxa6 {[%emt 0:02:34]} (21. Rec1 $5 {[%cal Rc1c7]} Rdc8 22. Rxc7 Rxc7 23. d5 exd5 24. exd5 (24. Rxb6 $2 d4 $19) (24. Qxb6 Qxb6 25. Rxb6 Bxd3 $15) (24. Bxa6 Qxa6 25. exd5 Nxd5 $15) 24... Nxd5 25. Bxh7+ {[%mdl 64] Decoy} (25. Qf3 Nf6 $11) 25... Kxh7 26. Qe4+ Kg8 27. Qxd5 $14) 21... Qxa6 {[%emt 0:00:05]} 22. Rb5 {[%emt 0:03:08]} Bd6 {[%emt 0:05:23]} 23. Nf3 {[%emt 0:00:30]} Bf8 {[%emt 0:02:18]} 24. Qb3 {[%emt 0:02:14]} Qa8 {[%emt 0:06:04]} 25. Qb1 {[%emt 0:08:16]} Rc4 {[%emt 0:04:36]} 26. Rxb6 {[%emt 0:00:46]} Rxa4 {[%emt 0:00:39][%cal Of8b4]} 27. Qb5 {[%emt 0:00:18]} Ra3 {[%emt 0:05:50]} 28. Ra6 {[%emt 0:00:15]} Qb8 {[%emt 0:10:53]} 29. Qxb8 {[%emt 0:00:20]} Rxb8 {[%emt 0:00:05]} 30. Rxa5 {[%emt 0:00:09]} (30. Bxa5 $2 {perishes.} Rb5 31. Ne5 (31. e5 $2 Nd5 $19) 31... Rbxa5 $19) 30... Rxa5 {[%emt 0:00:16]} 31. Bxa5 {[%emt 0:00:09]} Bb4 {[%emt 0:01:31]} ({Black should try} 31... Ra8 $14 32. Bd2 h6) 32. Bxb4 {[%emt 0:04:52]} (32. Rb1 $16 Bd6 33. Rxb8+ Bxb8 34. e5) 32... Rxb4 $16 {[%emt 0:00:06][%mdl 4096] Endgame KRN-KRN} 33. h3 {[%emt 0:00:11]} h6 {[%emt 0:00:11]} 34. Kf1 {[%emt 0:01:24]} g5 {[%emt 0:03:01]} 35. Re3 {[%emt 0:02:04]} Kg7 {[%emt 0:00:25]} 36. Ke2 {[%emt 0:00:34]} Ra4 {[%emt 0:00:12]} 37. g3 {[%emt 0:02:03]} Kg8 {[%emt 0:00:25]} 38. Kf1 {[%emt 0:01:26]} Kg7 {[%emt 0:00:19]} 39. Kg2 {[%emt 0:00:21]} Rb4 {[%emt 0:01:19]} 40. e5 {[%emt 0:00:00]} Nd5 {[%emt 0:00:00]} 41. Rd3 {[%emt 0:08:24]} Kg6 {[%emt 0:02:42]} 42. Nd2 {[%emt 0:02:17]} Kf5 {[%emt 0:02:55]} 43. Kf3 {[%emt 0:02:13]} h5 {[%emt 0:00:41]} 44. Ke2 {[%emt 0:01:51]} Ra4 {[%emt 0:03:10]} 45. Nb3 {[%emt 0:05:54]} g4 {[%emt 0:02:19]} 46. hxg4+ {[%emt 0:00:07]} hxg4 {[%emt 0:00:04]} 47. Nc5 {[%emt 0:00:40]} Rb4 {[%emt 0:00:14]} 48. Rd2 {[%emt 0:06:49]} Rb1 {[%emt 0:00:35]} 49. Kd3 {[%emt 0:00:31]} Nb4+ {[%emt 0:02:24]} 50. Kc4 {[%emt 0:00:22]} Nd5 {[%emt 0:00:21]} 51. Kd3 {[%emt 0:01:44]} Nb4+ {[%emt 0:00:10]} 52. Ke2 {[%emt 0:00:07]} Nd5 {[%emt 0:00:16]} 53. Rc2 {[%emt 0:04:13]} Rb4 {[%emt 0:00:31]} 54. Kd3 {[%emt 0:00:35]} Rb1 {[%emt 0:00:18] [#] Threatens to win with ...Nb4+.} 55. Ke2 {[%emt 0:03:25]} Rb4 {[%emt 0:00:06]} 56. Rd2 {[%emt 0:00:05]} Rb1 {[%emt 0:00:14]} 57. Rd3 {[%emt 0:00:40]} Rb2+ {[%emt 0:00:41]} 58. Rd2 {[%emt 0:00:36]} Rb1 {[%emt 0:00:10]} 59. f4 {[%emt 0:01:10]} Nc3+ {[%emt 0:01:40]} 60. Kd3 {[%emt 0:00:14]} Nd5 {[%emt 0:02:22] [#] Strongly threatening ...Rg1.} 61. Rh2 {[%emt 0:08:52]} Rd1+ {[%emt 0:04:49]} 62. Kc4 {[%emt 0:00:13] And now Rh5+ would win.} Ne3+ {[%emt 0:03:10]} 63. Kc3 {[%emt 0:00:10] Rh5+ is the strong threat.} Nd5+ {[%emt 0:00:27]} 64. Kb3 {[%emt 0:08:28]} Kg6 {[%emt 0:00:26]} 65. Rh8 {[%emt 0:00:18]} Kg7 {[%emt 0:02:12]} 66. Rh5 {[%emt 0:00:16]} Rxd4 {[%emt 0:03:47]} 67. Rg5+ {[%emt 0:00:13]} Kf8 {[%emt 0:00:07]} 68. Rxg4 {[%emt 0:00:19]} Rb4+ {[%emt 0:00:26]} 69. Ka3 {[%emt 0:00:17]} Rc4 {[%emt 0:00:48]} 70. Nb7 {[%emt 0:03:39]} Rc3+ {[%emt 0:05:55]} 71. Kb2 {[%emt 0:00:09]} Rf3 {[%emt 0:01:19]} 72. Nd6 {[%emt 0:03:31]} Ne3 {[%emt 0:01:01]} 73. Rg5 {[%emt 0:00:23]} Nf1 {[%emt 0:01:39]} 74. f5 {[%emt 0:01:03]} Rxg3 {[%emt 0:02:32]} 75. Rh5 {[%emt 0:00:07]} Rg2+ {[%emt 0:00:22]} 76. Ka3 {[%emt 0:00:29]} Rh2 {[%emt 0:01:56]} 77. Rg5 {[%emt 0:00:23] Hoping for f6.} Nd2 {[%emt 0:01:24]} 78. fxe6 {[%emt 0:01:08]} fxe6 {[%emt 0:00:06]} 79. Rg6 {[%emt 0:00:24]} Ke7 {[%emt 0:00:52]} 80. Rg7+ {[%emt 0:00:24]} Kd8 {[%emt 0:00:07]} 81. Rg3 {[%emt 0:00:11]} Re2 {[%emt 0:00:35]} 82. Kb4 {[%emt 0:01:28]} Kd7 {[%emt 0:00:47]} 83. Rd3 {[%emt 0:00:23] Nc4+ would be deadly.} Kc6 {[%emt 0:01:29]} 84. Rc3+ {[%emt 0:01:03]} Kd7 {[%emt 0:00:09]} 85. Nf7 {[%emt 0:00:55]} Ne4 {[%emt 0:00:23]} 86. Ra3 {[%emt 0:00:20]} Rc2 {[%emt 0:01:15]} 87. Rh3 {[%emt 0:01:09]} Kc6 {[%emt 0:00:33]} 88. Rd3 {[%emt 0:00:28]} Rd2 {[%emt 0:00:35]} 89. Ra3 {[%emt 0:01:36]} Rd4+ {[%emt 0:00:10]} 90. Kb3 {[%emt 0:00:29]} Rd3+ {[%emt 0:00:06]} 91. Kb2 {[%emt 0:00:05]} (91. Kb4 $5 {[%cal Ra3d3]} Rd4+ 92. Kb3 $11) 91... Rxa3 {[%emt 0:00:04]} 92. Kxa3 {[%emt 0:00:05] Weighted Error Value: White=0.07 (flawless) /Black=0.05 (flawless)} 1/2-1/2